bitfinex/quotes_BTCUSD_20250226
["timestamp","ask_amount","ask_price","bid_price","bid_amount"]
[1740600944787,0.133,83718.0,83713.0,0.09559373]
[1740600944996,0.133,83718.0,83710.0,0.01624]
[1740600945429,0.133,83718.0,83700.0,0.0162]
[1740600945671,0.0080482,83719.0,83701.0,0.54547245]
[1740600945878,0.0080482,83719.0,83714.0,0.09559373]
[1740600946081,0.00546158,83719.0,83715.0,1.81424057]
[1740600946319,0.00546158,83719.0,83717.0,0.0969]
[1740600946491,0.00546158,83719.0,83718.0,0.84680943]
[1740600946647,0.00546158,83719.0,83718.0,0.86300943]
[1740600947054,0.00546158,83719.0,83711.0,0.5438]
[1740600947888,0.00546158,83719.0,83711.0,0.56]
[1740600948365,0.00546158,83719.0,83714.0,0.007]
[1740600948569,0.00546158,83719.0,83715.0,0.84848162]
[1740600948775,0.00546158,83719.0,83715.0,0.84680943]
[1740600948999,0.00546158,83719.0,83716.0,0.00167185]
[1740600949199,0.00646158,83719.0,83716.0,0.00167185]
[1740600949398,0.00646158,83719.0,83717.0,0.94240316]
[1740600949623,0.00646158,83719.0,83718.0,0.00167176]
[1740600949824,0.08626158,83719.0,83695.0,0.0162]
[1740600950059,0.08626158,83719.0,83696.0,0.00167226]
[1740600950260,0.08626158,83719.0,83684.0,0.24496]
[1740600950261,0.09559373,83705.0,83684.0,0.24496]
[1740600950417,0.09559373,83694.0,83684.0,0.24496]
[1740600950802,0.02,83690.0,83684.0,0.24496]
[1740600951215,0.0802,83692.0,83684.0,0.24496]
[1740600951659,0.0802,83692.0,83687.0,0.01021834]
[1740600952014,0.07995,83692.0,83687.0,0.01134259]
[1740600952481,0.09559373,83691.0,83687.0,0.01034259]
[1740600952675,0.11559373,83691.0,83687.0,0.01034259]
[1740600952880,0.11559373,83691.0,83684.0,0.24496]
[1740600952881,0.02,83686.0,83684.0,0.15530259]
[1740600953091,0.0467,83690.0,83684.0,0.15530259]
[1740600953987,0.65470451,83704.0,83684.0,0.15530259]
[1740600954196,0.00012399,83700.0,83684.0,0.15530259]
[1740600954376,0.09559373,83694.0,83684.0,0.15530259]
[1740600954578,0.007,83690.0,83684.0,0.15630259]
[1740600955078,0.09559373,83694.0,83684.0,0.15530259]
[1740600955265,0.09559373,83692.0,83655.0,0.84680943]
[1740600955462,0.05916687,83690.0,83641.0,0.01648]
[1740600955661,0.00012399,83700.0,83642.0,0.00167366]
[1740600955662,0.05915798,83699.0,83642.0,0.00167366]
[1740600955861,0.00012399,83700.0,83684.0,0.001]
[1740600955862,0.05915899,83697.0,83684.0,0.001]
[1740600956072,0.05964597,83684.0,83632.0,0.24504]
[1740600956330,0.55911,83659.0,83632.0,0.24504]
[1740600956483,0.09559373,83654.0,83632.0,0.24504]
[1740600956681,0.245628,83653.0,83632.0,0.24504]
[1740600956908,0.1234,83652.0,83632.0,0.24504]
[1740600957690,0.1234,83652.0,83633.0,0.00054659]
[1740600958047,0.1234,83652.0,83600.0,0.0004223]
[1740600958048,0.05973997,83645.0,83600.0,0.0004223]
[1740600958254,0.55911,83635.0,83600.0,0.0004223]
[1740600958409,0.18515703,83627.0,83600.0,0.0004223]
[1740600958626,0.235312,83626.0,83600.0,0.0004223]
[1740600958834,0.05920511,83625.0,83600.0,0.0004223]
[1740600959032,0.20938675,83624.0,83600.0,0.0004223]
[1740600959279,0.55911,83622.0,83600.0,0.0004223]
[1740600959566,0.153203,83621.0,83600.0,0.0004223]
[1740600959720,0.157218,83620.0,83600.0,0.0004223]
[1740600959926,0.21431703,83619.0,83604.0,0.0004143]
[1740600960132,0.55911,83622.0,83552.0,0.0004237]
[1740600960133,0.05965894,83615.0,83552.0,0.0004237]
[1740600960336,0.1282,83595.0,83553.0,0.00012436]
[1740600960561,0.1282,83587.0,83553.0,0.00012436]
[1740600960760,0.0596825,83585.0,83553.0,0.00012436]
[1740600961002,1.0306901,83586.0,83553.0,0.00012436]
[1740600961003,0.05966369,83576.0,83553.0,0.00012436]
[1740600961158,0.05966369,83576.0,83514.0,0.24516]
[1740600961159,0.05902328,83567.0,83514.0,0.24516]
[1740600961391,0.05902328,83567.0,83472.0,0.31310943]
[1740600961392,0.1282,83534.0,83475.0,0.54138]
[1740600961563,0.1282,83534.0,83498.0,0.01672]
[1740600961967,0.1282,83534.0,83512.0,0.3826401]
[1740600962173,0.55911,83535.0,83533.0,0.3826401]
[1740600962366,0.05951931,83555.0,83523.0,0.48701946]
[1740600962562,0.05951931,83555.0,83490.0,0.04]
[1740600962834,0.289809,83554.0,83495.0,0.01672]
[1740600963201,0.55911,83546.0,83511.0,0.00087875]
[1740600963379,0.290182,83545.0,83511.0,0.00087875]
[1740600963591,0.1288,83544.0,83511.0,0.00087875]
[1740600964017,0.123682,83543.0,83511.0,0.00130165]
[1740600964900,0.02,83531.0,83490.0,0.04]
[1740600965101,0.0458,83525.0,83510.0,0.010669]
[1740600965307,0.461085,83524.0,83510.0,0.010669]
[1740600965510,0.375247,83523.0,83510.0,0.010669]
[1740600965803,0.919195,83524.0,83510.0,0.010669]
[1740600966006,0.02,83522.0,83510.0,0.010669]
[1740600966317,0.434498,83521.0,83510.0,0.010669]
[1740600966728,0.379577,83521.0,83510.0,0.010669]
[1740600966958,0.211669,83521.0,83510.0,0.010669]
[1740600967108,0.231385,83521.0,83510.0,0.010669]
[1740600967309,0.24320367,83521.0,83510.0,0.010669]
[1740600967518,0.02,83518.0,83510.0,0.010669]
[1740600967716,0.512953,83517.0,83510.0,0.010669]
[1740600967924,0.02,83511.0,83510.0,0.010669]
[1740600968179,0.47331867,83511.0,83510.0,0.010669]
[1740600968382,0.71251967,83511.0,83510.0,0.010669]
[1740600968610,0.01181867,83511.0,83510.0,0.010669]
[1740600971496,0.01181867,83511.0,83510.0,0.089069]
[1740600971699,0.44092337,83526.0,83525.0,0.3826401]
[1740600971874,0.60168,83543.0,83511.0,0.0469]
[1740600971875,0.0594381,83542.0,83511.0,0.0469]
[1740600972078,0.05911128,83540.0,83511.0,0.0417]
[1740600972277,0.282846,83539.0,83511.0,0.0417]
[1740600972516,0.05967922,83532.0,83510.0,0.08948159]
[1740600972674,0.05972784,83530.0,83510.0,0.08948159]
[1740600972878,0.179422,83529.0,83510.0,0.08948159]
[1740600973162,0.05972784,83530.0,83511.0,0.3826401]
[1740600973318,0.0599,83541.0,83529.0,0.3826401]
[1740600973515,0.60168,83542.0,83538.0,0.3800401]
[1740600973898,0.60168,83542.0,83513.0,0.48701946]
[1740600974098,0.60168,83542.0,83510.0,0.089069]
[1740600974099,0.38474576,83542.0,83510.0,0.089069]
[1740600974303,0.38475,83522.0,83510.0,0.010669]
[1740600974780,0.38475,83522.0,83510.0,0.01108159]
[1740600975115,0.38475,83522.0,83511.0,0.06482]
[1740600975335,0.38475,83563.0,83512.0,0.56429554]
[1740600975539,0.383343,83562.0,83513.0,0.30300943]
[1740600975759,0.383343,83562.0,83512.0,0.0756]
[1740600975996,0.0008476,83534.0,83512.0,0.0733]
[1740600976310,0.0008476,83534.0,83510.0,0.01150539]
[1740600976311,0.30084,83526.0,83510.0,0.01150539]
[1740600976545,0.38475,83526.0,83510.0,0.01150539]
[1740600976753,0.37667,83525.0,83510.0,0.01150539]
[1740600977436,0.70497,83525.0,83510.0,0.01150539]
[1740600977725,0.607832,83524.0,83510.0,0.01150539]
[1740600977943,0.310246,83523.0,83510.0,0.01150539]
[1740600978147,0.02,83521.0,83510.0,0.01150539]
[1740600978289,0.02,83511.0,83510.0,0.01150539]
[1740600978485,1.683045,83511.0,83510.0,0.01150539]
[1740600978771,1.485378,83511.0,83510.0,0.01150539]
[1740600978976,0.627255,83511.0,83510.0,0.01150539]
[1740600979254,0.627255,83511.0,83492.0,0.00812033]
[1740600979255,0.02,83499.0,83492.0,0.00812033]
[1740600979483,0.633632,83498.0,83492.0,0.00812033]
[1740600979667,0.00041259,83511.0,83492.0,0.00812033]
[1740600979860,0.02,83498.0,83492.0,0.00812033]
[1740600980002,0.32871259,83511.0,83492.0,0.00812033]
[1740600980003,1.279793,83497.0,83492.0,0.00812033]
[1740600980197,0.93717,83496.0,83492.0,0.00812033]
[1740600980399,3.39406,83495.0,83492.0,0.00812033]
[1740600980644,0.3283,83495.0,83492.0,0.00812033]
[1740600981020,0.08248876,83494.0,83492.0,0.00812033]
[1740600981357,0.08248876,83494.0,83474.0,0.0021587]
[1740600982273,0.3283,83493.0,83474.0,0.0021587]
[1740600982471,0.91163,83492.0,83474.0,0.0021587]
[1740600982688,1.188406,83491.0,83474.0,0.0021587]
[1740600982925,1.022864,83490.0,83474.0,0.0021587]
[1740600983096,2.770174,83489.0,83474.0,0.0021587]
[1740600983301,2.957369,83488.0,83474.0,0.0021587]
[1740600983461,3.851705,83487.0,83474.0,0.0021587]
[1740600983662,3.818815,83486.0,83474.0,0.0021587]
[1740600983880,1.510626,83485.0,83474.0,0.0021587]
[1740600984081,1.71546,83484.0,83474.0,0.0021587]
[1740600984293,1.302827,83483.0,83474.0,0.0021587]
[1740600984495,0.899909,83482.0,83474.0,0.0021587]
[1740600984676,1.084598,83481.0,83474.0,0.0021587]
[1740600984876,1.385136,83480.0,83474.0,0.0021587]
[1740600985079,2.36055,83479.0,83474.0,0.0021587]
[1740600985282,0.9251401,83478.0,83474.0,0.0021587]
[1740600985491,1.03914307,83477.0,83444.0,0.06401515]
[1740600985697,1.52730297,83476.0,83444.0,0.06401515]
[1740600986081,1.52730297,83475.0,83444.0,0.06401515]
[1740600986267,1.52730297,83474.0,83444.0,0.06401515]
[1740600986529,1.52730297,83473.0,83444.0,0.06401515]
[1740600986758,0.01668,83475.0,83444.0,0.06401515]
[1740600986759,1.52730297,83472.0,83444.0,0.06401515]
[1740600986959,1.52730297,83471.0,83444.0,0.06401515]
[1740600987167,1.54394297,83471.0,83444.0,0.06401515]
[1740600987344,1.65390297,83470.0,83444.0,0.06401515]
[1740600987545,0.1266,83468.0,83444.0,0.06401515]
[1740600987737,0.3826401,83477.0,83444.0,0.06401515]
[1740600987738,0.1266,83466.0,83444.0,0.06401515]
[1740600987955,0.1266,83464.0,83444.0,0.06401515]
[1740600988082,1.52730297,83465.0,83444.0,0.06401515]
[1740600988441,1.52730297,83464.0,83444.0,0.06401515]
[1740600988671,0.36455172,83445.0,83430.0,0.036562]
[1740600988787,0.3826401,83436.0,83430.0,0.036562]
[1740600988994,0.3825401,83436.0,83430.0,0.036562]
[1740600989236,0.1266,83434.0,83430.0,0.036562]
[1740600989812,0.00041183,83434.0,83430.0,0.036562]
[1740600990016,0.01712,83433.0,83430.0,0.036562]
[1740600990244,0.1266,83432.0,83430.0,0.036562]
[1740600990434,0.1266,83432.0,83390.0,0.0004236]
[1740600990435,0.1266,83430.0,83422.0,0.0013276]
[1740600990634,0.01712,83433.0,83390.0,0.0004236]
[1740600990635,1.45240606,83429.0,83390.0,0.0004236]
[1740600990835,0.01712,83433.0,83390.0,0.0004236]
[1740600991243,0.0172,83432.0,83390.0,0.0004236]
[1740600991485,2.41797106,83431.0,83390.0,0.0004236]
[1740600991680,0.61675,83430.0,83390.0,0.0004236]
[1740600991902,1.46960606,83429.0,83390.0,0.0004236]
[1740600992191,3.240863,83428.0,83390.0,0.0004236]
[1740600992337,2.696813,83427.0,83390.0,0.0004236]
[1740600992681,0.01732,83426.0,83390.0,0.0004236]
[1740600993068,0.00041183,83434.0,83390.0,0.0004236]
[1740600993269,0.01732,83433.0,83390.0,0.0004236]
[1740600993449,1.45240606,83432.0,83390.0,0.0004236]
[1740600993649,1.45240606,83431.0,83390.0,0.0004236]
[1740600993969,1.45240606,83430.0,83390.0,0.0004236]
[1740600994192,0.01732,83433.0,83390.0,0.0004236]
[1740600994393,1.57900606,83432.0,83390.0,0.0004236]
[1740600994600,0.00041183,83434.0,83390.0,0.0004236]
[1740600994601,0.1266,83430.0,83390.0,0.0004236]
[1740600994803,0.1266,83428.0,83390.0,0.0004236]
[1740600995117,0.01744,83431.0,83390.0,0.0004236]
[1740600995118,1.45240606,83427.0,83390.0,0.0004236]
[1740600995330,1.45240606,83426.0,83390.0,0.0004236]
[1740600995516,1.57900606,83425.0,83390.0,0.0004236]
[1740600995718,0.1266,83423.0,83390.0,0.0004236]
[1740600995922,0.1266,83421.0,83390.0,0.0004236]
[1740600996147,0.1266,83419.0,83390.0,0.0004236]
[1740600996312,0.1266,83417.0,83390.0,0.0004236]
[1740600996518,0.1266,83417.0,83368.0,0.0004526]
[1740600996718,0.1266,83415.0,83368.0,0.0004526]
[1740600997244,0.00041183,83434.0,83368.0,0.0004526]
[1740600997245,0.1266,83413.0,83368.0,0.0004526]
[1740600997400,1.45240606,83412.0,83368.0,0.0004526]
[1740600997599,1.57900606,83411.0,83368.0,0.0004526]
[1740600998004,0.1266,83411.0,83368.0,0.0004526]
[1740600998262,0.00622262,83410.0,83368.0,0.0004526]
[1740600998427,0.1266,83408.0,83368.0,0.0004526]
[1740600998628,0.1266,83406.0,83368.0,0.0004526]
[1740600998808,0.1216,83404.0,83368.0,7.192e-05]
[1740600998991,0.1166,83402.0,83368.0,7.192e-05]
[1740600999211,0.02396,83400.0,83368.0,0.00017192]
[1740600999434,0.02396,83398.0,83368.0,0.00017192]
[1740600999658,0.02396,83396.0,83368.0,0.00017192]
[1740600999860,0.14056,83394.0,83368.0,0.00017192]
[1740601000085,0.02396,83392.0,83368.0,0.00017192]
[1740601000286,0.02396,83390.0,83362.0,0.25236987]
[1740601000480,0.00041158,83402.0,83360.0,0.0004236]
[1740601000481,0.02396,83386.0,83360.0,0.0004236]
[1740601000687,0.02396,83384.0,83328.0,0.001]
[1740601000918,0.02396,83382.0,83328.0,0.001]
[1740601001120,0.02396,83380.0,83328.0,0.001]
[1740601001251,0.02396,83378.0,83328.0,0.001]
[1740601001482,0.1166,83385.0,83328.0,0.001]
[1740601001483,0.02396,83376.0,83328.0,0.001]
[1740601001694,0.1166,83385.0,83328.0,0.001]
[1740601001695,0.02396,83374.0,83328.0,0.001]
[1740601001896,0.24648,83401.0,83328.0,0.001]
[1740601001897,0.02396,83372.0,83328.0,0.001]
[1740601002096,0.02396,83370.0,83328.0,0.001]
[1740601002305,0.02396,83368.0,83328.0,0.001]
[1740601002501,0.02396,83366.0,83328.0,0.001]
[1740601002734,0.0142114,83362.0,83328.0,0.001]
[1740601002939,0.0142114,83360.0,83328.0,0.001]
[1740601003134,0.0142114,83358.0,83328.0,0.001]
[1740601003353,0.02396,83348.0,83328.0,0.001]
[1740601003511,0.1166,83337.0,83328.0,0.001]
[1740601003713,0.1166,83337.0,83306.0,0.000424]
[1740601003715,0.24648,83336.0,83306.0,0.000424]
[1740601004080,0.1166,83335.0,83306.0,0.000424]
[1740601004613,0.1166,83335.0,83242.0,0.00109524]
[1740601004845,0.3283,83334.0,83242.0,0.00109524]
[1740601005097,0.11701107,83335.0,83242.0,0.00109524]
[1740601005451,0.02396,83330.0,83242.0,0.00109524]
[1740601005655,0.1166,83331.0,83242.0,0.00109524]
[1740601005656,0.02396,83328.0,83242.0,0.00109524]
[1740601005813,0.02396,83326.0,83242.0,0.00109524]
[1740601006014,0.1166,83323.0,83242.0,0.00109524]
[1740601006212,0.1166,83321.0,83249.0,0.000424]
[1740601006721,0.01892026,83311.0,83249.0,0.000424]
[1740601007044,0.02324,83310.0,83249.0,0.000424]
[1740601007173,0.02328,83309.0,83249.0,0.000424]
[1740601007602,0.1166,83308.0,83249.0,0.000424]
[1740601008009,0.1166,83306.0,83249.0,0.000424]
[1740601008210,0.1166,83304.0,83249.0,0.000424]
[1740601008368,4.755482,83303.0,83249.0,0.000424]
[1740601008569,4.425246,83302.0,83249.0,0.000424]
[1740601008930,0.02404,83301.0,83251.0,0.42003042]
[1740601009153,0.02404,83301.0,83266.0,0.3826401]
[1740601009352,1.43730782,83300.0,83284.0,0.3826401]
[1740601009552,0.147516,83299.0,83296.0,0.31087075]
[1740601009690,0.8708,83298.0,83296.0,0.09168768]
[1740601009889,0.50423242,83297.0,83296.0,0.08818768]
[1740601010163,0.06102258,83301.0,83300.0,0.02]
[1740601010310,0.02432,83328.0,83297.0,0.0453]
[1740601010499,0.0244,83352.0,83310.0,0.3826401]
[1740601010745,0.0244,83352.0,83310.0,0.3530401]
[1740601011056,0.02448,83327.0,83310.0,0.34080818]
[1740601011259,0.02448,83327.0,83297.0,0.0453]
[1740601011260,0.02448,83344.0,83296.0,0.16502828]
[1740601011463,0.02,83378.0,83310.0,0.3826401]
[1740601011662,0.02448,83381.0,83359.0,0.3826401]
[1740601011862,0.02,83373.0,83359.0,0.19550392]
[1740601012162,0.02496,83398.0,83372.0,0.17540158]
[1740601012387,0.059923,83442.0,83359.0,0.42252859]
[1740601012388,0.1511599,83388.0,83359.0,0.02412605]
[1740601012509,0.025,83429.0,83359.0,0.02412605]
[1740601012700,0.02,83426.0,83350.0,0.3826401]
[1740601012957,0.02,83411.0,83360.0,0.22862]
[1740601013175,0.301425,83425.0,83360.0,0.22862]
[1740601013176,0.482997,83410.0,83403.0,0.3826401]
[1740601013347,0.00041158,83426.0,83409.0,0.37417207]
[1740601013695,0.34884,83440.0,83425.0,0.29940757]
[1740601013834,0.06102258,83524.0,83425.0,0.29862557]
[1740601013835,0.02,83461.0,83425.0,0.29862557]
[1740601014033,0.115145,83460.0,83425.0,0.26562557]
[1740601014299,0.02,83410.0,83400.0,0.0453]
[1740601014507,0.02,83396.0,83385.0,0.2466]
[1740601014703,0.02,83393.0,83385.0,0.1447773]
[1740601014903,0.015,83398.0,83385.0,0.12153052]
[1740601015178,0.015,83394.0,83385.0,0.00610711]
[1740601015344,0.015,83374.0,83341.0,0.00543888]
[1740601015562,0.015,83374.0,83266.0,0.48701946]
[1740601015563,0.02,83364.0,83290.0,0.2466]
[1740601015759,0.02,83412.0,83290.0,0.2466]
[1740601016065,0.11688323,83308.0,83290.0,0.2466]
[1740601016220,0.02,83419.0,83291.0,0.48121488]
[1740601016418,0.02,83401.0,83292.0,0.47316326]
[1740601016628,0.02,83378.0,83293.0,0.2466]
[1740601016831,0.02,83367.0,83293.0,0.2466]
[1740601017029,0.02,83335.0,83263.0,0.24697477]
[1740601017256,0.02,83304.0,83263.0,0.00041477]
[1740601017594,0.02,83281.0,83263.0,0.00041477]
[1740601017731,0.55612405,83303.0,83265.0,0.00079107]
[1740601017732,0.02095305,83303.0,83265.0,0.00079107]
[1740601018704,0.02,83296.0,83265.0,0.00079107]
[1740601019003,0.34884,83318.0,83265.0,0.00079107]
[1740601019004,0.02,83284.0,83265.0,0.00079107]
[1740601019159,0.02,83310.0,83265.0,0.00089107]
[1740601019360,0.02,83309.0,83265.0,0.00089107]
[1740601019565,0.02544,83321.0,83265.0,0.00089107]
[1740601021063,0.02,83279.0,83265.0,0.00089107]
[1740601021312,0.0765,83318.0,83265.0,0.00089107]
[1740601021313,0.02,83293.0,83265.0,0.00089107]
[1740601021517,0.02,83278.0,83265.0,0.00089107]
[1740601021723,0.3826401,83276.0,83265.0,0.00089107]
[1740601021933,3.37237842,83275.0,83265.0,0.00089107]
[1740601022109,3.37237842,83275.0,83247.0,0.0023787]
[1740601022110,2.851538,83274.0,83247.0,0.0023787]
[1740601022323,3.02843,83273.0,83247.0,0.0023787]
[1740601022648,0.0258,83272.0,83247.0,0.0023787]
[1740601022859,0.0258,83272.0,83256.0,0.3826401]
[1740601022860,0.438487,83272.0,83256.0,0.3826401]
[1740601022997,0.03287237,83272.0,83265.0,0.3826401]
[1740601023211,0.03287237,83272.0,83256.0,0.3826401]
[1740601023409,0.04673242,83321.0,83256.0,0.3826401]
[1740601023410,0.06059559,83364.0,83274.0,0.02]
[1740601023613,0.217941,83363.0,83334.0,0.3826401]
[1740601023811,0.0258,83363.0,83325.0,0.3826401]
[1740601024021,1.135825,83362.0,83334.0,0.3826401]
[1740601024242,0.30402082,83382.0,83344.0,0.16158287]
[1740601024499,0.284933,83381.0,83344.0,0.16158287]
[1740601024813,0.00121132,83381.0,83340.0,0.0805]
[1740601025013,0.00041132,83381.0,83297.0,0.0258]
[1740601025146,0.00168045,83380.0,83291.0,0.47148288]
[1740601025345,0.00168045,83380.0,83290.0,0.02584]
[1740601025544,0.02,83372.0,83289.0,0.24412045]
[1740601025895,0.00158045,83371.0,83290.0,0.24656]
[1740601026042,0.169146,83370.0,83290.0,0.24656]
[1740601026249,0.02,83368.0,83291.0,0.046]
[1740601026445,0.102608,83367.0,83291.0,0.046]
[1740601026654,0.4751,83306.0,83291.0,0.046]
[1740601026851,0.0301,83306.0,83290.0,0.24656]
[1740601027052,0.02592,83382.0,83290.0,0.24656]
[1740601027272,0.30157,83314.0,83291.0,0.49740288]
[1740601027472,0.30157,83314.0,83300.0,0.0001]
[1740601027649,0.30157,83314.0,83290.0,0.20460848]
[1740601027859,0.30157,83314.0,83290.0,0.20473284]
[1740601028264,0.30157,83314.0,83268.0,0.0023]
[1740601028265,0.39856716,83271.0,83269.0,0.00168108]
[1740601028472,0.01344377,83271.0,83270.0,0.47148288]
[1740601028669,0.01344377,83271.0,83269.0,0.00012324]
[1740601029393,0.30120356,83264.0,83258.0,0.24656]
[1740601029590,0.30120356,83264.0,83241.0,0.51946186]
[1740601030196,0.07512313,83282.0,83241.0,0.51946186]
[1740601030433,0.09603611,83359.0,83241.0,0.51946186]
[1740601030434,0.35075324,83323.0,83241.0,0.51946186]
[1740601030632,0.04673242,83323.0,83251.0,0.03780089]
[1740601030863,0.02584,83325.0,83251.0,0.03780089]
[1740601031038,0.0008466,83360.0,83252.0,0.524383]
[1740601031039,0.0258,83353.0,83252.0,0.524383]
[1740601031441,0.0008466,83360.0,83254.0,0.0897]
[1740601031442,0.59822,83302.0,83254.0,0.0897]
[1740601031648,0.59822,83302.0,83255.0,0.47148288]
[1740601031858,0.59822,83302.0,83251.0,0.03780089]
[1740601032055,0.59822,83302.0,83256.0,0.00168163]
[1740601032261,0.59792,83271.0,83252.0,0.47148288]
[1740601032409,0.59792,83271.0,83253.0,0.47148288]
[1740601032813,0.59792,83271.0,83251.0,0.03780089]
[1740601032814,0.59792,83271.0,83254.0,0.47316445]
[1740601033018,0.59792,83271.0,83255.0,0.47148288]
[1740601033222,0.59792,83306.0,83256.0,0.09138097]
[1740601033425,0.59792,83306.0,83257.0,0.47148288]
[1740601033830,0.59792,83306.0,83258.0,0.47316406]
[1740601034038,0.59792,83306.0,83258.0,0.47148288]
[1740601034234,0.0008466,83360.0,83259.0,0.47316395]
[1740601034235,0.59792,83287.0,83259.0,0.47316395]
[1740601034432,0.59792,83287.0,83260.0,0.47148288]
[1740601034634,0.59782,83287.0,83251.0,0.03780089]
[1740601034813,0.59782,83287.0,83252.0,0.00168119]
[1740601035015,0.59782,83287.0,83253.0,0.0956]
[1740601035222,0.59782,83287.0,83256.0,0.0004233]
[1740601035501,0.0008466,83276.0,83257.0,0.00168108]
[1740601035818,0.0008466,83276.0,83256.0,0.0004233]
[1740601036762,0.0479,83274.0,83256.0,0.0004233]
[1740601036996,0.32402082,83273.0,83256.0,0.0004233]
[1740601037194,0.38431514,83269.0,83256.0,0.0004233]
[1740601037396,0.33168332,83257.0,83244.0,0.0088065]
[1740601037628,0.89251696,83256.0,83240.0,0.01]
[1740601037796,0.84652082,83255.0,83240.0,0.01]
[1740601038015,0.91851696,83254.0,83240.0,0.01]
[1740601038217,0.5425,83253.0,83240.0,0.01]
[1740601038421,0.07199614,83254.0,83240.0,0.01]
[1740601038601,0.5425,83253.0,83240.0,0.01]
[1740601039606,0.0188853,83251.0,83240.0,0.01]
[1740601039811,0.35001696,83250.0,83240.0,0.01]
[1740601039935,0.04599614,83250.0,83240.0,0.01]
[1740601040473,0.02584,83249.0,83240.0,0.01]
[1740601040682,1.0,83254.0,83242.0,0.38431514]
[1740601040868,0.93968861,83254.0,83252.0,0.38431514]
[1740601041073,0.93968861,83254.0,83253.0,0.0819]
[1740601041274,0.88968861,83254.0,83253.0,0.38431514]
[1740601041676,0.88968861,83254.0,83210.0,6.246e-05]
[1740601041885,0.35001696,83253.0,83210.0,6.246e-05]
[1740601042084,0.02,83233.0,83193.0,0.01]
[1740601042249,0.0199,83221.0,83193.0,0.01]
[1740601042448,0.59653896,83220.0,83193.0,0.01]
[1740601042654,0.0142,83232.0,83193.0,0.01]
[1740601042655,0.61972596,83219.0,83193.0,0.01]
[1740601042960,0.01889208,83217.0,83193.0,0.01]
[1740601043322,0.16398,83216.0,83193.0,0.01]
[1740601043508,0.89251696,83215.0,83193.0,0.01]
[1740601043662,0.01236,83214.0,83193.0,0.01]
[1740601043866,0.35001696,83213.0,83193.0,0.01]
[1740601044267,0.02225157,83212.0,83193.0,0.01]
[1740601044553,0.01224,83211.0,83193.0,0.01]
[1740601044721,0.06824771,83210.0,83193.0,0.01]
[1740601044919,0.06824771,83210.0,83194.0,0.38431514]
[1740601044920,0.01889415,83207.0,83194.0,0.38431514]
[1740601045158,0.01889415,83207.0,83203.0,0.38431514]
[1740601045475,0.0004142,83217.0,83206.0,0.38431514]
[1740601045728,0.0004142,83217.0,83216.0,0.36471514]
[1740601045927,0.0004142,83217.0,83216.0,0.41231514]
[1740601046054,0.02225157,83253.0,83216.0,0.41231514]
[1740601046055,0.88968861,83254.0,83228.0,0.02]
[1740601046266,0.88968861,83254.0,83233.0,0.01863028]
[1740601046464,0.93568475,83254.0,83228.0,0.00012313]
[1740601046670,0.56475157,83253.0,83228.0,0.00012313]
[1740601046869,0.106679,83252.0,83228.0,0.00012313]
[1740601047070,0.93568475,83254.0,83228.0,0.00012313]
[1740601047498,0.88968861,83254.0,83229.0,0.0474]
[1740601047670,0.93568475,83254.0,83193.0,0.0104234]
[1740601047873,0.02225157,83253.0,83193.0,0.0104234]
[1740601048072,0.01888379,83248.0,83193.0,0.0104234]
[1740601049212,0.88981286,83254.0,83193.0,0.0104234]
[1740601049393,0.88981286,83254.0,83194.0,0.47148288]
[1740601049592,0.88981286,83254.0,83195.0,0.009]
[1740601049793,0.88981286,83254.0,83193.0,0.01646574]
[1740601049794,0.58928711,83254.0,83197.0,0.009]
[1740601049994,0.46118711,83254.0,83198.0,0.00168188]
[1740601050195,0.60386,83214.0,83198.0,0.00168188]
[1740601050417,0.24830217,83214.0,83200.0,0.009]
[1740601050616,0.13910217,83214.0,83201.0,0.00068204]
[1740601050842,0.13910217,83214.0,83196.0,0.47148288]
[1740601051046,0.13910217,83214.0,83193.0,0.0105234]
[1740601051047,0.10812079,83214.0,83202.0,0.00168217]
[1740601051245,0.40014112,83254.0,83216.0,0.36988015]
[1740601051418,0.40014112,83254.0,83217.0,0.37156141]
[1740601051419,0.40026537,83254.0,83217.0,0.37156141]
[1740601051630,0.20205694,83254.0,83218.0,0.36988015]
[1740601051854,0.20205694,83254.0,83213.0,0.24676]
[1740601051855,0.20205694,83254.0,83219.0,0.37156193]
[1740601052112,0.20205694,83254.0,83219.0,0.36988015]
[1740601052261,0.20205694,83254.0,83220.0,0.40871763]
[1740601052463,0.20205694,83254.0,83220.0,0.40703634]
[1740601052685,0.20205694,83254.0,83221.0,0.00168119]
[1740601053013,0.20205694,83254.0,83222.0,0.36988015]
[1740601053190,0.20205694,83254.0,83221.0,0.00168143]
[1740601053191,0.20205694,83254.0,83223.0,0.37156152]
[1740601053334,0.6035,83250.0,83224.0,0.00168159]
[1740601053535,0.6035,83250.0,83225.0,0.36988015]
[1740601053757,0.6035,83250.0,83226.0,0.03883762]
[1740601053957,0.6035,83250.0,83227.0,0.36988015]
[1740601054220,0.6035,83250.0,83213.0,0.30300943]
[1740601054221,0.6035,83250.0,83228.0,0.37156145]
[1740601054351,0.6035,83250.0,83228.0,0.36988015]
[1740601054568,0.6035,83250.0,83229.0,0.36988015]
[1740601054784,0.6035,83250.0,83230.0,0.37156143]
[1740601054987,0.6035,83250.0,83231.0,0.36988015]
[1740601055151,0.6035,83250.0,83232.0,0.00168151]
[1740601055350,0.6035,83250.0,83233.0,0.5478]
[1740601055551,0.6035,83250.0,83234.0,0.54948154]
[1740601055791,0.6035,83250.0,83236.0,0.0957]
[1740601055994,0.6035,83250.0,83238.0,0.0957]
[1740601056196,0.6035,83250.0,83240.0,0.0957]
[1740601056397,0.20205694,83254.0,83241.0,1.63201758]
[1740601056799,0.20205694,83254.0,83242.0,0.00168094]
[1740601056995,0.20205694,83254.0,83242.0,1.30639852]
[1740601057175,0.20205694,83254.0,83242.0,1.30471758]
[1740601057352,0.20205694,83254.0,83243.0,0.46686189]
[1740601057556,0.20205694,83254.0,83243.0,0.4651809]
[1740601057752,0.20205694,83254.0,83244.0,0.46686193]
[1740601057973,0.20205694,83254.0,83244.0,0.4651809]
[1740601058199,0.20205694,83254.0,83245.0,0.4668618]
[1740601058477,0.20205694,83254.0,83246.0,0.04668618]
[1740601058689,0.20205694,83254.0,83247.0,0.00168102]